bitfinex/quotes_ETHUSD_20230117
["timestamp","ask_amount","ask_price","bid_price","bid_amount"]
[1673922216994,5.44160158,1557.3,1557.0,3.0]
[1673922217425,0.099,1557.3,1557.1,3.11662407]
[1673922217682,11.38670446,1557.4,1557.2,3.0]
[1673922218262,1.05910446,1557.4,1557.2,3.0]
[1673922218477,0.96010446,1557.4,1557.2,3.0]
[1673922218685,2.88206116,1557.5,1557.2,3.0]
[1673922219077,1.27387238,1557.4,1557.2,3.0]
[1673922220076,0.96010446,1557.4,1557.2,3.0]
[1673922220267,1.27402489,1557.4,1557.2,3.0]
[1673922221526,0.96010446,1557.4,1557.2,3.0]
[1673922221730,0.96010446,1557.3,1557.2,3.0]
[1673922221989,1.27406415,1557.3,1557.2,3.0]
[1673922222213,1.27406415,1557.3,1557.0,0.066]
[1673922222350,2.27406415,1557.3,1556.9,3.07188485]
[1673922222562,1.96010446,1557.3,1556.9,6.18850892]
[1673922222766,0.96010446,1557.3,1556.9,6.18850892]
[1673922223016,1.27419528,1557.3,1556.9,14.98152634]
[1673922223229,1.27419528,1557.3,1556.9,16.52984252]
[1673922223829,0.96010446,1557.2,1556.9,6.18850892]
[1673922224153,15.34229116,1557.3,1556.9,6.18850892]
[1673922224367,11.87830446,1557.3,1557.0,3.11662407]
[1673922224559,11.87830446,1557.3,1557.1,3.0]
[1673922224560,10.9182,1557.3,1557.1,3.0]
[1673922225188,0.099,1557.3,1557.1,3.0]
[1673922225355,3.44810446,1557.4,1557.1,3.0]
[1673922225715,2.44810446,1557.4,1557.1,3.0]
[1673922226982,3.88826116,1557.4,1557.1,3.0]
[1673922229297,1.96010446,1557.4,1557.1,3.0]
[1673922229545,1.27434768,1557.3,1557.1,3.0]
[1673922229772,7.69576768,1557.3,1557.1,3.0]
[1673922229925,7.48052446,1557.3,1557.1,3.0]
[1673922230346,8.92068116,1557.3,1557.1,3.0]
[1673922230550,11.85685044,1557.3,1557.1,3.0]
[1673922231034,1.27445457,1557.2,1556.9,3.13788485]
[1673922231193,1.27445457,1557.2,1556.9,3.07188485]
[1673922237397,1.27445457,1557.2,1556.9,3.06830778]
[1673922238655,7.69627457,1557.2,1556.9,3.06830778]
[1673922238869,9.98236851,1557.2,1556.9,3.06830778]
[1673922240453,16.40418851,1557.2,1556.9,3.06830778]
[1673922240700,1.27427972,1557.1,1556.9,0.06830778]
[1673922242174,24.4232052,1557.2,1556.9,0.06830778]
[1673922242366,2.44232052,1557.1,1556.9,0.06830778]
[1673922242680,24.4232052,1557.2,1556.9,0.06830778]
[1673922243030,22.10736851,1557.2,1556.9,0.06830778]
[1673922247720,23.54752521,1557.2,1556.9,0.06830778]
[1673922247959,22.10736851,1557.2,1556.9,0.06830778]
[1673922248127,23.54752521,1557.2,1556.9,0.06830778]
[1673922248581,22.05952521,1557.2,1556.9,0.06830778]
[1673922249382,1.27467895,1557.1,1556.9,0.06830778]
[1673922249654,2.27467895,1557.1,1556.9,0.06830778]
[1673922249803,5.13174132,1557.1,1556.9,0.06830778]
[1673922250009,4.23074132,1557.1,1556.9,0.06830778]
[1673922250289,4.13174132,1557.1,1556.9,0.06830778]
[1673922251910,0.96010446,1557.0,1556.9,0.06830778]
[1673922252167,1.27487422,1557.0,1556.9,0.06830778]
[1673922252480,2.603229,1557.0,1556.9,0.06830778]
[1673922252850,3.603229,1557.0,1556.9,0.06830778]
[1673922253303,10.025829,1557.0,1556.9,0.06830778]
[1673922253513,11.5649857,1557.0,1556.9,0.06830778]
[1673922253849,11.08688124,1557.0,1556.9,0.06830778]
[1673922254480,16.53209543,1557.0,1556.9,0.06830778]
[1673922254700,33.68377153,1557.0,1556.9,0.06830778]
[1673922254845,34.55945152,1557.0,1556.9,0.06830778]
[1673922255053,32.63924259,1557.0,1556.9,0.06830778]
[1673922255265,32.1621617,1557.0,1556.9,0.06830778]
[1673922255483,24.2655617,1557.0,1556.9,0.06830778]
[1673922255915,18.86807974,1557.0,1556.9,0.06830778]
[1673922256807,24.26549946,1557.0,1556.9,0.06830778]
[1673922256957,20.30972907,1557.0,1556.9,0.06830778]
[1673922257324,18.86807974,1557.0,1556.9,0.06830778]
[1673922258584,20.34407974,1557.0,1556.9,0.06830778]
[1673922258956,21.78579676,1557.0,1556.9,0.06830778]
[1673922259168,19.86272155,1557.0,1556.9,0.06830778]
[1673922259728,21.78579676,1557.0,1556.9,0.06830778]
[1673922260128,21.78579676,1557.0,1556.9,0.0649712]
[1673922261170,19.86272155,1557.0,1556.9,0.0649712]
[1673922261589,26.28532155,1557.0,1556.9,0.0649712]
[1673922261795,28.20839676,1557.0,1556.9,0.0649712]
[1673922262040,26.76667974,1557.0,1556.9,0.0649712]
[1673922262258,28.20794168,1557.0,1556.9,0.0649712]
[1673922262768,26.76667974,1557.0,1556.9,0.0649712]
[1673922263001,28.20768572,1557.0,1556.9,0.0649712]
[1673922263603,26.76667974,1557.0,1556.9,0.0649712]
[1673922264020,28.20769412,1557.0,1556.9,0.0649712]
[1673922264533,26.76667974,1557.0,1556.9,0.0649712]
[1673922265203,28.20762201,1557.0,1556.9,0.0649712]
[1673922267293,26.2845468,1557.0,1556.9,0.0649712]
[1673922268624,11.59562648,1557.0,1556.9,0.0649712]
[1673922268891,7.79700422,1557.0,1556.9,0.0649712]
[1673922270029,8.79700422,1557.0,1556.9,0.0649712]
[1673922270435,8.67268421,1557.0,1556.9,0.0649712]
[1673922270670,7.79700422,1557.0,1556.9,0.0649712]
[1673922270840,11.36179555,1557.0,1556.9,0.0649712]
[1673922271061,12.23747554,1557.0,1556.9,0.0649712]
[1673922276076,11.36179555,1557.0,1556.9,0.0649712]
[1673922276550,0.099,1557.0,1556.9,1.1079712]
[1673922276764,12.65567673,1557.2,1556.9,7.5309912]
[1673922277130,1.05963446,1557.2,1556.9,10.64761527]
[1673922277348,0.96063446,1557.2,1556.9,19.18497445]
[1673922277600,2.40157673,1557.3,1556.9,18.53863527]
[1673922277762,2.65671926,1557.3,1557.0,4.85386353]
[1673922277973,2.65671926,1557.3,1557.0,11.27636353]
[1673922278427,1.21577699,1557.2,1557.0,11.27636353]
[1673922278649,0.96063446,1557.2,1557.0,11.27636353]
[1673922279760,0.96063446,1557.2,1557.0,4.85386353]
[1673922280011,1.21581455,1557.2,1557.0,3.0]
[1673922281033,1.21346026,1557.2,1557.0,3.0]
[1673922282860,0.95828017,1557.2,1557.0,3.0]
[1673922283233,7.96131227,1557.3,1557.0,3.0]
[1673922284487,0.2553216,1557.2,1557.0,3.0]
[1673922285975,0.2583216,1557.2,1557.0,3.0]
[1673922286172,0.2553216,1557.2,1557.0,12.30325253]
[1673922286388,14.5940445,1557.4,1557.0,28.2650766]
[1673922286645,0.25529751,1557.3,1557.1,15.96069407]
[1673922286875,1.44094227,1557.4,1557.1,15.96069407]
[1673922287012,1.69618943,1557.4,1557.2,1.59606941]
[1673922287223,12.8297445,1557.5,1557.2,1.59606941]
[1673922287464,0.25518137,1557.4,1557.2,1.59606941]
[1673922291120,1.2153374,1557.4,1557.2,1.59606941]
[1673922293609,1.2153374,1557.4,1557.1,17.44871407]
[1673922293902,1.2153374,1557.4,1557.1,17.38271407]
[1673922294903,1.2153374,1557.4,1557.2,0.0058438]
[1673922297221,16.9735583,1557.5,1557.2,0.0058438]
[1673922297781,2.5000983,1557.5,1557.2,9.4276138]
[1673922298003,1.89118305,1557.6,1557.3,4.05938545]
[1673922298203,0.96015603,1557.6,1557.4,6.42095]
[1673922298531,0.96315603,1557.6,1557.4,6.42095]
[1673922298848,3.61880768,1557.7,1557.5,14.23816407]
[1673922298849,0.099,1557.7,1557.5,14.23816407]
[1673922299017,0.07347259,1557.8,1557.6,6.02344048]
[1673922299229,0.07347259,1557.8,1557.7,14.01334407]
[1673922299491,0.07347259,1557.8,1557.7,12.53634407]
[1673922300265,0.07347259,1557.8,1557.7,18.95606407]
[1673922301015,0.07347259,1557.8,1557.7,19.60240325]
[1673922301227,0.07347259,1557.8,1557.7,21.70726004]
[1673922304398,0.07347259,1557.8,1557.7,21.70403714]
[1673922304732,0.07347259,1557.8,1557.7,23.18403714]
[1673922304892,0.07347259,1557.8,1557.7,23.41403714]
[1673922307128,0.07347259,1557.8,1557.7,23.40803714]
[1673922308148,0.07347259,1557.8,1557.7,29.82775714]
[1673922309201,0.07347259,1557.8,1557.7,30.47409632]
[1673922310601,0.07347259,1557.8,1557.7,34.65698916]
[1673922310942,0.07347259,1557.8,1557.7,44.44708916]
[1673922311879,0.07347259,1557.8,1557.7,45.20325676]
[1673922312151,0.07347259,1557.8,1557.7,45.89385283]
[1673922312317,0.13625788,1558.0,1557.9,25.67556]
[1673922312469,0.13625788,1558.0,1557.9,41.81963291]
[1673922312680,0.13625788,1558.0,1557.9,42.46597209]
[1673922313157,0.13625788,1558.0,1557.9,38.28307925]
[1673922313374,0.13625788,1558.0,1557.9,42.46597209]
[1673922313893,0.13625788,1558.0,1557.9,38.28307925]
[1673922316423,0.1332251,1558.0,1557.9,38.28307925]
[1673922317686,0.1332251,1558.0,1557.9,36.81207925]
[1673922319334,0.1332251,1558.0,1557.9,35.33607925]
[1673922332512,0.1332251,1558.0,1557.9,28.91718925]
[1673922332976,0.1332251,1558.0,1557.9,29.34324825]
[1673922333162,0.1332251,1558.0,1557.9,26.67569225]
[1673922333382,0.1332251,1558.0,1557.9,12.96157307]
[1673922334198,0.1332251,1558.0,1557.9,3.426059]
[1673922335263,1.24928139,1558.0,1557.9,3.426059]
[1673922335619,0.1332251,1558.0,1557.9,3.426059]
[1673922336014,1.2492815,1558.0,1557.9,3.426059]
[1673922336213,1.09338113,1558.0,1557.9,3.426059]
[1673922336459,0.1332251,1558.0,1557.9,3.426059]
[1673922337163,1.09338113,1558.0,1557.9,3.426059]
[1673922337505,1.24936885,1558.0,1557.9,3.426059]
[1673922337717,2.69031112,1558.0,1557.9,3.426059]
[1673922338631,3.22232148,1558.0,1557.9,3.426059]
[1673922338815,2.26216545,1558.0,1557.9,3.426059]
[1673922338959,2.26216545,1558.0,1557.9,3.42403905]
[1673922341059,3.22320819,1558.0,1557.9,3.42403905]
[1673922341283,1.25025556,1558.0,1557.9,12.95955312]
[1673922341481,1.25025556,1558.0,1557.9,25.79733312]
[1673922342542,2.53521011,1558.0,1557.9,25.79733312]
[1673922342756,1.25025556,1558.0,1557.9,25.79733312]
[1673922343534,2.69119783,1558.0,1557.9,25.79733312]
[1673922343745,2.69136722,1558.0,1557.9,25.79733312]
[1673922344427,1.25042495,1558.0,1557.9,25.79733312]
[1673922344842,2.69136722,1558.0,1557.9,25.79733312]
[1673922346736,2.69136722,1558.0,1557.9,29.02559643]
[1673922347822,1.25042495,1558.0,1557.9,29.02559643]
[1673922348019,2.69136722,1558.0,1557.9,29.02559643]
[1673922348770,1.25042495,1558.0,1557.9,29.02559643]
[1673922349314,2.69136722,1558.0,1557.9,25.79733312]
[1673922349471,2.21185509,1558.0,1557.9,12.95955312]
[1673922349686,1.73015509,1558.0,1557.9,12.95955312]
[1673922350151,3.6532303,1558.0,1557.9,12.95955312]
[1673922350957,3.6532303,1558.0,1557.9,3.42403905]
[1673922352219,4.42925177,1558.0,1557.9,3.42403905]
[1673922352460,8.38214122,1558.0,1557.9,3.42403905]
[1673922352674,8.48114122,1558.0,1557.9,3.42403905]
[1673922352886,8.95833318,1558.0,1557.9,0.426059]
[1673922353209,11.92003318,1558.0,1557.9,0.426059]
[1673922353357,13.84176261,1558.0,1557.9,0.426059]
[1673922353777,13.84176261,1558.0,1557.8,3.38458067]
[1673922354044,5.46145517,1557.9,1557.8,3.38458067]
[1673922354219,6.3821846,1557.9,1557.8,3.38458067]
[1673922354876,11.33512688,1557.9,1557.8,3.38458067]
[1673922355039,11.33512688,1557.9,1557.8,0.38458067]
[1673922355249,6.42259341,1557.9,1557.8,0.38458067]
[1673922355456,11.81687128,1557.9,1557.8,0.38458067]
[1673922355706,10.81687128,1557.9,1557.8,0.38458067]
[1673922356543,11.81687128,1557.9,1557.8,0.38458067]
[1673922357143,20.63602845,1557.9,1557.8,0.38458067]
[1673922357567,21.3447032,1557.9,1557.8,0.38458067]
[1673922357813,20.63582499,1557.9,1557.8,0.38458067]
[1673922358021,18.71429902,1557.9,1557.8,0.38458067]
[1673922358196,19.42317723,1557.9,1557.8,0.38458067]
[1673922358550,33.03207902,1557.9,1557.8,0.15974915]
[1673922358766,33.74095723,1557.9,1557.8,0.15974915]
[1673922359086,31.34069006,1557.9,1557.8,0.15974915]
[1673922359306,33.74195101,1557.9,1557.8,0.15974915]
[1673922364752,33.73995101,1557.9,1557.8,0.15974915]
[1673922365977,35.66035154,1557.9,1557.8,0.15974915]
[1673922366866,21.88613898,1557.9,1557.8,0.15974915]
[1673922367035,3.68825845,1557.9,1557.8,0.15974915]
[1673922367254,1.11606805,1557.9,1557.8,1.20274915]
[1673922368092,1.11606805,1557.9,1557.8,0.15974915]
[1673922369286,2.55628431,1557.9,1557.8,0.15974915]
[1673922372194,2.55657305,1557.9,1557.8,0.15974915]
[1673922372641,1.59620398,1557.9,1557.8,0.15974915]
[1673922373069,2.55665585,1557.9,1557.8,0.15974915]
[1673922373234,1.59620398,1557.9,1557.8,0.15974915]
[1673922374074,3.88423576,1557.9,1557.8,0.15974915]
[1673922374327,9.75874801,1557.9,1557.8,0.15974915]
[1673922374547,10.56662622,1557.9,1557.8,0.15974915]
[1673922374704,11.56662622,1557.9,1557.8,0.15974915]
[1673922376017,10.56662622,1557.9,1557.8,0.15974915]
[1673922376226,9.85774801,1557.9,1557.8,0.15974915]
[1673922377282,6.90415164,1557.9,1557.8,0.15974915]
[1673922378543,5.46342003,1557.9,1557.8,0.15974915]
[1673922379115,9.85777797,1557.9,1557.8,0.15974915]
[1673922379279,4.94512003,1557.9,1557.8,0.15974915]
[1673922379504,3.51724567,1557.9,1557.8,0.15974915]
[1673922379714,1.59684514,1557.9,1557.8,1.20274915]
[1673922379932,2.5575539,1557.9,1557.8,1.19906274]
[1673922380137,2.5575539,1557.9,1557.8,7.61836274]
[1673922381361,1.11669648,1557.9,1557.8,7.61836274]
[1673922381838,2.5575539,1557.9,1557.8,7.61836274]
[1673922382049,1.11669648,1557.9,1557.8,7.61836274]
[1673922382874,1.11669648,1557.9,1557.8,1.19906274]
[1673922383498,1.11669648,1557.9,1557.8,0.15606274]
[1673922385288,1.19293386,1558.0,1557.8,17.0159372]
[1673922385621,1.09393386,1558.0,1557.8,20.0159372]
[1673922385830,1.09393386,1558.0,1557.9,9.53551407]
[1673922385979,1.2185806,1558.0,1557.9,12.53551407]
[1673922386192,1.2185806,1558.0,1557.9,13.90220928]
[1673922394875,2.53479128,1558.0,1557.9,12.53551407]
[1673922395048,2.65943802,1558.0,1557.9,12.53551407]
[1673922395660,1.69872926,1558.0,1557.9,12.53551407]
[1673922395986,1.21854625,1558.0,1557.9,12.53551407]
[1673922397822,1.21854625,1558.0,1557.9,20.96255679]
[1673922397823,0.1332251,1558.0,1557.9,20.96255679]
[1673922398131,0.1332251,1558.0,1557.9,29.48578597]
[1673922401308,0.1332251,1558.0,1557.9,28.83944679]
[1673922401630,0.13027568,1558.0,1557.9,28.83944679]
[1673922402202,0.13027568,1558.0,1557.9,39.01484357]
[1673922402413,0.13027568,1558.0,1557.9,39.77101117]
[1673922403467,0.13027568,1558.0,1557.9,41.2037576]
[1673922403904,0.13027568,1558.0,1557.9,47.70871117]
[1673922405616,0.13027568,1558.0,1557.9,46.75354689]
[1673922405793,0.13027568,1558.0,1557.9,47.70871117]
[1673922406888,5.68e-06,1558.0,1557.9,48.94871117]
[1673922407040,5.68e-06,1558.0,1557.9,49.63930724]
[1673922408666,5.68e-06,1558.0,1557.9,48.41130724]
[1673922408869,5.68e-06,1558.0,1557.9,47.72071117]
[1673922411558,5.68e-06,1558.0,1557.9,46.76554689]
[1673922412343,0.12333765,1558.1,1557.9,46.76554689]
[1673922412548,0.12333765,1558.1,1558.0,32.75861876]
[1673922412914,0.12333765,1558.1,1558.0,33.40495794]
[1673922413129,0.12333765,1558.1,1558.0,37.58785078]
[1673922414600,0.12333765,1558.1,1558.0,33.40495794]
[1673922414844,0.12333765,1558.1,1558.0,32.75861876]
[1673922415427,0.12333765,1558.1,1558.0,33.40495794]
[1673922415900,0.12333765,1558.1,1558.0,33.17495794]
[1673922416072,0.12333765,1558.1,1558.0,33.18080174]
[1673922418218,0.12333765,1558.1,1558.0,33.41080174]
[1673922424436,0.12333765,1558.1,1558.0,34.87020321]
[1673922424649,0.12333765,1558.1,1558.0,36.55866257]
[1673922424870,0.12333765,1558.1,1558.0,34.87020321]
[1673922425243,0.12333765,1558.1,1558.0,36.55890995]
[1673922425875,0.12333765,1558.1,1558.0,40.74180279]
[1673922426296,0.12333765,1558.1,1558.0,36.55890995]
[1673922427037,0.12333765,1558.1,1558.0,40.74180279]
[1673922427243,0.12956233,1558.2,1558.1,2.09497537]
[1673922427465,0.12956233,1558.2,1558.1,29.39530768]
[1673922427767,0.12956233,1558.2,1558.1,33.04164686]
[1673922427980,0.12956233,1558.2,1558.1,27.11214862]
[1673922430006,0.12956233,1558.2,1558.1,27.34214862]
[1673922430910,0.12956233,1558.2,1558.1,26.69580944]
[1673922433124,0.02956233,1558.2,1558.1,26.69580944]
[1673922436226,0.02956233,1558.2,1558.1,28.15315912]
[1673922436439,0.02956233,1558.2,1558.1,32.24531323]
[1673922436599,0.02956233,1558.2,1558.1,32.89165241]
[1673922437749,0.02956233,1558.2,1558.1,34.58025014]
[1673922439691,0.02956233,1558.2,1558.1,35.53541442]
[1673922440597,0.02956233,1558.2,1558.1,34.58025014]
[1673922441036,0.02956233,1558.2,1558.1,33.93391096]
[1673922441897,0.02956233,1558.2,1558.1,34.88907524]
[1673922442058,0.02956233,1558.2,1558.1,33.93391096]
[1673922442266,0.02956233,1558.2,1558.1,34.88907524]
[1673922443951,0.02956233,1558.2,1558.1,33.93391096]
[1673922444527,0.99023674,1558.2,1558.1,29.84175685]
[1673922444746,0.02956233,1558.2,1558.1,29.84175685]
[1673922446279,0.02956233,1558.2,1558.1,30.79692113]
[1673922447479,0.02956233,1558.2,1558.1,29.84175685]
[1673922447803,0.02956233,1558.2,1558.1,30.79692113]
[1673922447991,0.02956233,1558.2,1558.1,34.30541146]
[1673922448631,0.02956233,1558.2,1558.1,35.26057574]
[1673922450512,0.02956233,1558.2,1558.1,36.69332217]
[1673922450899,0.02956233,1558.2,1558.1,35.26057574]
[1673922460582,1.06756233,1558.2,1558.1,33.26241146]
[1673922460800,2.17211881,1558.2,1558.1,25.65280944]
[1673922461156,1.61571881,1558.2,1558.1,25.65280944]
[1673922461679,1.13411881,1558.2,1558.1,25.65280944]
[1673922463127,2.83675178,1558.2,1558.1,6.16859944]
[1673922463304,5.66195997,1558.2,1558.1,6.16502677]
[1673922463519,3.84055944,1558.2,1558.1,6.16502677]
[1673922463725,3.74455944,1558.2,1558.1,6.16502677]
[1673922463979,3.74155944,1558.2,1558.1,6.16502677]
[1673922464386,3.74155944,1558.2,1558.1,3.0484027]
[1673922464609,16.03182645,1558.2,1558.1,0.0484027]
[1673922464929,19.7720874,1558.2,1558.1,0.0484027]
[1673922465100,26.1897474,1558.2,1558.1,0.0484027]
[1673922466383,23.79041707,1558.2,1558.1,0.0484027]
[1673922466576,26.19167802,1558.2,1558.1,0.0484027]
[1673922466769,11.97969317,1558.2,1558.1,0.0484027]
[1673922467029,7.00366229,1558.2,1558.1,0.0484027]
[1673922467701,5.08133114,1558.2,1558.1,0.0484027]
[1673922468660,6.08133114,1558.2,1558.1,0.0484027]
[1673922468978,5.08133114,1558.2,1558.1,0.0484027]
[1673922469394,3.84133114,1558.2,1558.1,0.0484027]
[1673922469556,3.74233114,1558.2,1558.1,0.0484027]
[1673922469766,4.74233114,1558.2,1558.1,0.0484027]
[1673922470245,3.74233114,1558.2,1558.1,0.0484027]
[1673922470973,13.08232229,1558.2,1558.1,0.0484027]
[1673922471129,18.15735317,1558.2,1558.1,0.0484027]
[1673922471341,25.26176717,1558.2,1558.1,0.0484027]
[1673922471800,31.67942717,1558.2,1558.1,0.0484027]
[1673922472038,32.38830538,1558.2,1558.1,0.0484027]
[1673922472948,31.22304443,1558.2,1558.1,0.0484027]
[1673922473165,41.28444443,1558.2,1558.1,0.0484027]
[1673922473758,48.94434443,1558.2,1558.1,0.0484027]
[1673922474382,51.34357802,1558.2,1558.1,0.0484027]
[1673922476421,53.2622101,1558.2,1558.1,0.0484027]
[1673922476631,53.2622101,1558.2,1558.1,0.0542465]
[1673922477482,48.94434443,1558.2,1558.1,0.0002465]
[1673922477699,65.3762891,1558.2,1557.8,0.15606274]
[1673922477850,5.63192579,1557.9,1557.8,0.15606274]
[1673922478066,32.03206786,1557.9,1557.8,0.15606274]
[1673922478271,57.00251314,1557.9,1557.8,0.15606274]
[1673922478536,51.60597225,1557.9,1557.8,0.15606274]
[1673922478751,56.75335497,1557.9,1557.8,0.15606274]
[1673922479802,59.86997904,1557.9,1557.8,0.15606274]
[1673922480020,60.09997904,1557.9,1557.8,0.15606274]
[1673922480170,67.89360273,1557.9,1557.8,0.15606274]
[1673922480385,60.09997904,1557.9,1557.8,0.15606274]
[1673922481448,62.49863628,1557.9,1557.8,0.15606274]
[1673922481913,60.09997904,1557.9,1557.8,0.15606274]
[1673922483377,61.53600036,1557.9,1557.8,0.15606274]
[1673922484214,59.33613713,1557.9,1557.8,0.15606274]
[1673922484371,57.90011581,1557.9,1557.8,0.15606274]
[1673922484901,58.37884839,1557.9,1557.8,0.15606274]
[1673922485556,59.33579378,1557.9,1557.8,0.15606274]
[1673922485989,57.89977246,1557.9,1557.8,0.15606274]
[1673922486509,57.89977246,1557.9,1557.8,0.04242409]
[1673922488511,57.89977246,1557.9,1557.8,0.00777123]
[1673922488512,59.56884839,1557.9,1557.8,0.00777123]
[1673922488721,61.48600036,1557.9,1557.8,0.00777123]
[1673922488942,61.48600036,1557.9,1557.8,0.00077123]
[1673922489153,59.56884839,1557.9,1557.8,0.00077123]
[1673922489327,60.04997904,1557.9,1557.8,0.00077123]
[1673922489544,61.48481597,1557.9,1557.8,0.00077123]
[1673922489796,60.04997904,1557.9,1557.8,0.00077123]
[1673922490007,57.62697904,1557.9,1557.8,0.00077123]
[1673922490154,58.86697904,1557.9,1557.8,0.00077123]
[1673922490526,60.30181891,1557.9,1557.8,0.00077123]
[1673922490687,58.86697904,1557.9,1557.8,0.00077123]
[1673922491642,60.30168771,1557.9,1557.8,0.00077123]
[1673922492081,58.86697904,1557.9,1557.8,0.00077123]
[1673922494143,62.34848431,1557.9,1557.8,0.00077123]
[1673922494353,67.74406149,1557.9,1557.8,0.00077123]
[1673922494626,0.00122877,1557.7,1557.3,0.06604161]
[1673922494785,28.35947504,1557.6,1557.3,0.06604161]
[1673922494981,1.0,1557.5,1557.3,0.06604161]
[1673922495323,20.50285,1557.4,1557.3,0.06604161]
[1673922495672,20.60185,1557.4,1557.3,0.06604161]
[1673922499294,19.36185,1557.4,1557.3,0.06604161]
[1673922499512,22.040115,1557.4,1557.3,0.06604161]
[1673922499761,28.21184042,1557.4,1557.3,4.161e-05]
[1673922499951,31.94548541,1557.4,1557.3,4.161e-05]
[1673922500368,30.98865037,1557.4,1557.3,4.161e-05]
[1673922501395,13.84274,1557.3,1557.2,0.00261518]
[1673922501659,25.91890241,1557.3,1557.2,0.00261518]
[1673922501815,35.96050241,1557.3,1557.2,0.00261518]
[1673922502466,37.56486486,1557.3,1557.2,0.00261518]
[1673922502924,35.09186486,1557.3,1557.2,0.00261518]
[1673922503498,34.36540106,1557.3,1557.2,0.00261518]
[1673922503922,33.40831418,1557.3,1557.2,0.00261518]
[1673922504388,36.35831418,1557.3,1557.2,0.00261518]
[1673922504611,38.04189578,1557.3,1557.2,0.00261518]
[1673922505508,36.35831418,1557.3,1557.2,0.00261518]
[1673922505734,36.56088337,1557.3,1557.2,0.00261518]
[1673922505916,35.56088337,1557.3,1557.2,0.00261518]
[1673922506131,33.87731418,1557.3,1557.2,0.00261518]
[1673922506374,32.40831418,1557.3,1557.2,0.00261518]
[1673922509489,34.09249763,1557.3,1557.2,0.00261518]
[1673922509702,33.61059763,1557.3,1557.2,0.00261518]
[1673922510159,32.88350106,1557.3,1557.2,0.00261518]
[1673922510381,34.7510148,1557.3,1557.2,0.00261518]
[1673922511201,36.18626736,1557.3,1557.2,0.00261518]
[1673922512384,35.22918048,1557.3,1557.2,0.00261518]
[1673922512957,38.34580455,1557.3,1557.2,0.00261518]
[1673922513322,40.48947463,1557.3,1557.2,0.00261518]
[1673922513759,38.57580455,1557.3,1557.2,0.00261518]
[1673922514139,40.05880455,1557.3,1557.2,0.00261518]
[1673922514669,41.97247463,1557.3,1557.2,0.00261518]
[1673922515118,40.05880455,1557.3,1557.2,0.00261518]
[1673922516273,40.53722207,1557.3,1557.2,0.00061518]
[1673922516482,20.26534,1557.2,1557.1,0.06815489]
[1673922516655,29.42698675,1557.2,1557.1,0.06815489]
[1673922518289,29.90888675,1557.2,1557.1,0.06815489]
[1673922518500,28.94922643,1557.2,1557.1,0.06815489]
[1673922518668,30.86308896,1557.2,1557.1,0.06815489]
[1673922518885,29.42340603,1557.2,1557.1,0.00015489]
[1673922520797,37.21271816,1557.2,1557.1,0.00015489]
[1673922521395,31.81549363,1557.2,1557.1,0.00015489]
[1673922521662,29.42340603,1557.2,1557.1,0.00015489]
[1673922521817,30.86287146,1557.2,1557.1,0.00015489]
[1673922522294,28.46730138,1557.2,1557.1,0.00015489]
[1673922522823,27.46730138,1557.2,1557.1,0.00015489]
[1673922523181,23.63091486,1557.2,1557.1,0.00015489]
[1673922523393,22.19144943,1557.2,1557.1,0.00015489]
[1673922527606,23.63091486,1557.2,1557.1,0.00015489]
[1673922529503,22.67131917,1557.2,1557.1,0.00015489]
[1673922529836,24.58498925,1557.2,1557.1,0.00015489]
[1673922530031,29.18116435,1557.2,1557.1,0.00015489]
[1673922530777,29.18329763,1557.2,1557.1,0.00015489]
[1673922530993,29.1832967,1557.2,1557.1,0.00015489]
[1673922531327,27.74169892,1557.2,1557.1,0.00015489]
[1673922531679,35.53057667,1557.2,1557.1,0.00015489]
[1673922531974,36.02177521,1557.2,1557.1,0.00015489]
[1673922532123,34.09880659,1557.2,1557.1,0.00015489]
[1673922532373,36.02179666,1557.2,1557.1,0.00015489]
[1673922532601,34.09880659,1557.2,1557.1,0.00015489]
[1673922535455,29.02073149,1557.2,1557.1,0.00015489]
[1673922535669,16.17717149,1557.2,1557.1,1.16315489]
[1673922535879,2.75060886,1557.2,1557.1,1.16315489]
[1673922536115,4.09467863,1557.2,1557.1,1.16315489]
[1673922536423,2.17057873,1557.2,1557.1,1.16315489]
[1673922537567,2.17057873,1557.2,1557.1,1.28658015]
[1673922537785,2.40519058,1557.2,1557.1,1.28658015]
[1673922538101,3.13269954,1557.2,1557.1,1.28658015]
[1673922538344,1.68962977,1557.2,1557.1,1.28658015]
[1673922539885,1.68962977,1557.2,1557.1,4.40320422]
[1673922540104,1.06112081,1557.3,1557.1,8.87520422]
[1673922540253,0.96212081,1557.3,1557.2,7.00414449]
[1673922540938,1.6531011,1557.3,1557.2,7.00414449]
[1673922541620,1.6531011,1557.3,1557.2,3.88752042]
[1673922541985,1.6531011,1557.3,1557.2,3.0]
[1673922542195,1.6531011,1557.3,1557.1,4.66158015]
[1673922542455,1.6531011,1557.3,1557.1,7.71220422]
[1673922544514,1.6531011,1557.3,1557.1,7.58877896]
[1673922548725,1.6531011,1557.3,1557.1,6.11677896]
[1673922551036,1.6531011,1557.3,1557.1,3.00015489]
[1673922551037,8.0745111,1557.3,1557.1,3.00015489]
[1673922551194,7.48253081,1557.3,1557.2,3.0]
[1673922551403,8.17255532,1557.3,1557.1,0.06615489]
[1673922551733,8.17255532,1557.3,1557.1,0.00015489]
[1673922551734,7.48253081,1557.3,1557.1,0.00015489]
[1673922552382,9.85171686,1557.3,1557.1,0.00015489]
[1673922552918,9.07417319,1557.2,1557.1,0.00015489]
[1673922553242,23.940679,1557.2,1557.1,0.00015489]
[1673922553459,23.458779,1557.2,1557.1,0.00015489]
[1673922554898,22.458779,1557.2,1557.1,0.00015489]
[1673922555106,25.29617597,1557.2,1557.1,0.00015489]
[1673922555321,24.33507912,1557.2,1557.1,0.00015489]
[1673922558016,25.29626887,1557.2,1557.1,0.00015489]
[1673922558227,24.33507912,1557.2,1557.1,0.00015489]
[1673922558522,25.29626998,1557.2,1557.1,0.00015489]
[1673922558646,25.29626983,1557.2,1557.1,0.00015489]
[1673922559284,24.33507912,1557.2,1557.1,0.00015489]
[1673922562433,25.29672796,1557.2,1557.1,0.00015489]
[1673922562960,18.87494796,1557.2,1557.1,0.00015489]
[1673922564421,17.43187819,1557.2,1557.1,0.00015489]
[1673922564633,18.87494796,1557.2,1557.1,0.00015489]
[1673922565423,12.45316796,1557.2,1557.1,0.00015489]
[1673922566207,11.01009819,1557.2,1557.1,0.00015489]
[1673922566419,12.45316796,1557.2,1557.1,0.00015489]
[1673922566631,11.01009819,1557.2,1557.1,0.00015489]
[1673922567083,12.45316796,1557.2,1557.1,0.00015489]
[1673922567523,11.01009819,1557.2,1557.1,0.00015489]
[1673922567696,12.45316796,1557.2,1557.1,0.00015489]
[1673922568452,11.01009819,1557.2,1557.1,1.16315489]
[1673922568666,0.099,1557.2,1557.1,1.16315489]
[1673922568941,2.40471861,1557.3,1557.1,1.16315489]
[1673922569198,0.96164884,1557.3,1557.1,4.27977896]
[1673922569410,1.6524378,1557.3,1557.1,4.27977896]
[1673922569626,1.6524378,1557.3,1557.2,0.4279779]
[1673922569840,1.6524378,1557.3,1557.2,3.4279779]